bitfinex/quotes_SOLUSD_20250617
["timestamp","ask_amount","ask_price","bid_price","bid_amount"]
[1750171167590,0.28432314,150.06,150.02,6.66577789]
[1750171167881,7.42951099,150.04,150.02,6.66577789]
[1750171168288,0.28432314,150.06,150.01,6.66622225]
[1750171168488,7.42951099,150.04,150.01,6.66622225]
[1750171168696,7.42951099,150.05,150.01,6.66622225]
[1750171168901,7.42951099,150.05,150.01,14.09573324]
[1750171169074,7.42951099,150.05,150.01,6.66622225]
[1750171169272,0.28432314,150.06,150.01,30.76128886]
[1750171169475,7.42951099,150.06,150.02,7.42951099]
[1750171169675,7.71383413,150.07,150.03,7.42951099]
[1750171170387,6.42,150.11,150.06,7.42951099]
[1750171170701,4.97900149,150.1,150.06,7.42951099]
[1750171170882,18.82600718,150.11,150.06,7.42951099]
[1750171171084,12.40832511,150.1,150.04,23.32711276]
[1750171171298,7.42951099,150.1,150.06,7.42951099]
[1750171171703,6.42,150.11,150.04,23.32711276]
[1750171172006,7.42951099,150.13,150.09,7.42951099]
[1750171172177,7.42951099,150.13,150.08,7.42951099]
[1750171172378,7.42951099,150.13,150.09,6.66266906]
[1750171172693,0.28432314,150.13,150.09,14.09218005]
[1750171172900,7.42951099,150.14,150.1,7.42951099]
[1750171173280,12.40435176,150.15,150.11,7.42951099]
[1750171173501,4.9768557,150.14,150.11,7.42951099]
[1750171173673,18.82435176,150.16,150.12,7.42951099]
[1750171173876,12.40616113,150.15,150.11,7.42951099]
[1750171174200,4.97664905,150.14,150.11,7.42951099]
[1750171174402,11.39484077,150.16,150.12,6.66133759]
[1750171174626,12.40618428,150.15,150.12,6.66133759]
[1750171174775,4.97667329,150.14,150.12,6.66133759]
[1750171175105,7.42951099,150.15,150.12,6.66133759]
[1750171175275,4.97514601,150.14,150.12,6.66133759]
[1750171175601,7.42951099,150.15,150.12,6.66133759]
[1750171175787,4.97520755,150.14,150.12,6.66133759]
[1750171176000,7.42951099,150.15,150.12,6.66133759]
[1750171177087,6.42,150.16,150.12,6.66133759]
[1750171177283,12.40371582,150.15,150.12,6.66133759]
[1750171177495,7.42951099,150.15,150.12,6.66133759]
[1750171177911,7.42951099,150.15,150.1,6.66222518]
[1750171178092,12.4039196,150.14,150.1,14.09173617]
[1750171178291,5.25916391,150.17,150.13,7.42951099]
[1750171178499,0.28432314,150.17,150.13,7.42951099]
[1750171178685,19.15042966,150.19,150.14,7.42951099]
[1750171178889,4.97293434,150.18,150.15,7.42951099]
[1750171179090,26.57994065,150.19,150.15,7.42951099]
[1750171179603,7.42951099,150.18,150.14,7.42951099]
[1750171179804,7.42951099,150.17,150.13,26.0]
[1750171180110,7.42951099,150.17,150.14,6.66045024]
[1750171182697,7.42951099,150.17,150.13,7.42951099]
[1750171183114,4.96672286,150.18,150.13,7.42951099]
[1750171183441,7.42951099,150.17,150.12,7.42951099]
[1750171183611,7.42951099,150.17,150.13,7.42951099]
[1750171184124,7.42951099,150.16,150.12,7.42951099]
[1750171184511,4.96672286,150.18,150.1,23.31778813]
[1750171184512,5.251046,150.17,150.11,7.42951099]
[1750171184831,7.42951099,150.16,150.13,6.66089389]
[1750171186018,19.15042966,150.19,150.15,7.42951099]
[1750171186225,24.11347167,150.19,150.16,7.42951099]
[1750171186706,24.11347167,150.19,150.15,7.42951099]
[1750171187155,19.15042966,150.19,150.16,7.42951099]
[1750171187314,19.15042966,150.19,150.13,23.31312861]
[1750171187315,6.70432314,150.21,150.18,7.42951099]
[1750171187619,7.42951099,150.2,150.15,1.6124]
[1750171187826,7.42951099,150.19,150.16,6.65956313]
[1750171188034,7.71383413,150.2,150.16,14.08907412]
[1750171188234,7.7058,150.24,150.19,7.42951099]
[1750171188438,12.38833289,150.25,150.2,7.42951099]
[1750171188613,7.42951099,150.23,150.19,7.42951099]
[1750171188812,7.42951099,150.24,150.19,7.42951099]
[1750171189041,12.38833289,150.24,150.19,7.42951099]
[1750171189235,7.42951099,150.23,150.17,1.5432]
[1750171189442,7.42951099,150.23,150.19,7.42951099]
[1750171189618,7.42951099,150.24,150.2,7.42951099]
[1750171189941,12.38833289,150.24,150.21,6.65734638]
[1750171190115,4.9588219,150.24,150.21,6.65734638]
[1750171190516,12.38833289,150.24,150.21,6.65734638]
[1750171190710,4.9588219,150.25,150.21,6.65734638]
[1750171190936,12.38833289,150.24,150.21,6.65734638]
[1750171191121,12.38833289,150.25,150.21,14.08685737]
[1750171191313,20.6024423,150.26,150.21,14.08685737]
[1750171191514,7.42951099,150.25,150.21,14.08685737]
[1750171192141,7.42951099,150.25,150.21,30.73022332]
[1750171192658,7.42951099,150.25,150.21,14.08685737]
[1750171192820,7.42951099,150.23,150.21,6.65734638]
[1750171193413,7.71383413,150.25,150.21,14.08685737]
[1750171194855,7.42951099,150.25,150.21,6.65734638]
[1750171195143,13.89811916,150.26,150.23,7.42951099]
[1750171196239,13.89811916,150.26,150.22,7.42951099]
[1750171197341,13.89811916,150.26,150.23,7.42951099]
[1750171197551,13.89811916,150.26,150.22,7.42951099]
[1750171198851,13.89811916,150.26,150.23,6.65646009]
[1750171199348,7.42951099,150.25,150.23,6.65646009]
[1750171199664,7.42951099,150.24,150.23,6.65646009]
[1750171199846,13.89811916,150.26,150.23,6.65646009]
[1750171199847,7.42951099,150.25,150.23,6.65646009]
[1750171200424,7.42951099,150.25,150.12,23.31468158]
[1750171200425,94.07299398,150.24,150.12,23.31468158]
[1750171200617,7.42951099,150.18,150.12,23.31468158]
[1750171200848,7.42951099,150.16,150.12,23.31468158]
[1750171201223,7.42951099,150.15,150.12,23.31468158]
[1750171201649,0.28432314,150.18,150.12,23.31468158]
[1750171201944,7.42951099,150.17,150.12,30.74419257]
[1750171202450,7.42951099,150.18,150.13,7.42951099]
[1750171203040,7.42951099,150.18,150.14,30.74108684]
[1750171203536,7.42951099,150.18,150.14,23.31157585]
[1750171204555,7.42951099,150.17,150.14,23.31157585]
[1750171205527,7.42951099,150.18,150.14,30.74108684]
[1750171206253,7.42951099,150.17,150.14,23.31157585]
[1750171207559,0.28432314,150.21,150.14,23.31157585]
[1750171207760,7.42951099,150.18,150.14,30.74108684]
[1750171208245,7.25382126,150.18,150.14,30.74108684]
[1750171208653,0.28432314,150.21,150.14,30.74108684]
[1750171208853,7.42951099,150.19,150.15,7.42951099]
[1750171209681,7.42951099,150.19,150.16,6.65956313]
[1750171210244,7.42951099,150.18,150.16,6.65956313]
[1750171210447,7.42951099,150.17,150.16,6.65956313]
[1750171211132,7.42951099,150.17,150.12,6.66133759]
[1750171211341,7.42951099,150.13,150.09,6.66266906]
[1750171211559,7.42951099,150.11,150.08,23.31981039]
[1750171211758,0.28432314,150.15,150.08,30.74932138]
[1750171211942,7.42951099,150.14,150.1,7.42951099]
[1750171212344,7.42951099,150.14,150.08,82.63537542]
[1750171212546,7.42951099,150.14,150.09,7.42951099]
[1750171212753,7.42951099,150.13,150.08,56.74932138]
[1750171212958,7.42951099,150.14,150.09,7.42951099]
[1750171213160,7.42951099,150.14,150.1,7.42951099]
[1750171213348,7.42951099,150.14,150.08,49.31981039]
[1750171213551,7.42951099,150.13,150.1,6.66222518]
[1750171213747,7.42951099,150.11,150.1,6.66222518]
[1750171214344,7.42951099,150.11,150.09,6.66251761]
[1750171214974,7.42951099,150.13,150.09,30.74870126]
[1750171215348,7.42951099,150.14,150.1,7.42951099]
[1750171215647,7.42951099,150.14,150.11,6.66178136]
[1750171217186,7.42951099,150.15,150.11,6.66178136]
[1750171217546,7.42951099,150.14,150.11,6.66178136]
[1750171217971,0.28432314,150.16,150.11,6.66178136]
[1750171218142,7.42951099,150.15,150.11,6.66178136]
[1750171218342,7.42951099,150.14,150.11,6.66178136]
[1750171218743,7.42951099,150.12,150.11,6.66178136]
[1750171218959,7.42951099,150.13,150.11,6.66178136]
[1750171219271,0.28432314,150.15,150.11,6.66178136]
[1750171219463,0.28432314,150.16,150.1,30.74729912]
[1750171219662,7.42951099,150.14,150.1,30.74729912]
[1750171221056,7.42951099,150.14,150.1,23.31778813]
[1750171221245,31.32228445,150.16,150.1,6.66222518]
[1750171221483,7.42951099,150.13,150.09,6.66266906]
[1750171222693,7.42951099,150.14,150.09,30.74885271]
[1750171223174,7.42951099,150.14,150.09,23.31934172]
[1750171223354,4.96149375,150.17,150.14,6.66045024]
[1750171223674,18.71100474,150.18,150.14,14.08996123]
[1750171223889,7.42951099,150.17,150.14,6.66045024]
[1750171224844,7.42951099,150.16,150.14,6.66045024]
[1750171225549,7.42951099,150.16,150.13,6.66089389]
[1750171225875,19.07613357,150.13,150.06,6.66400106]
[1750171226094,7.42951099,150.07,150.06,6.66400106]
[1750171226257,26.83583357,150.13,150.06,6.66400106]
[1750171226449,7.42951099,150.07,150.06,6.66400106]
[1750171226659,7.42951099,150.07,150.04,6.66488936]
[1750171226982,11.19818288,150.06,150.04,6.66488936]
[1750171227682,11.19818288,150.05,150.03,6.66533359]
[1750171228980,11.19818288,150.05,150.02,6.66577789]
[1750171230176,11.19818288,150.04,150.02,6.66577789]
[1750171230375,11.19818288,150.03,150.0,6.66666666]
[1750171230579,0.28432314,150.05,150.0,23.33333332]
[1750171230750,11.19818288,150.04,150.0,23.33333332]
[1750171231975,11.19818288,150.04,150.0,34.5315162]
[1750171232379,11.19818288,150.04,150.0,23.33333332]
[1750171232883,11.19818288,150.04,150.0,34.5315162]
[1750171233261,11.19818288,150.04,150.0,23.33333332]
[1750171233656,11.19818288,150.03,150.0,23.33333332]
[1750171234360,11.19818288,150.04,150.0,23.33333332]
[1750171234953,11.19818288,150.06,150.01,11.19818288]
[1750171235581,11.19818288,150.05,150.01,11.19818288]
[1750171235958,0.28432314,150.07,150.02,11.19818288]
[1750171236165,11.19818288,150.06,150.02,11.19818288]
[1750171236360,11.19818288,150.06,150.01,11.19818288]
[1750171236588,11.19818288,150.05,150.01,11.19818288]
[1750171236976,11.19818288,150.05,150.0,34.5315162]
[1750171237277,11.19818288,150.04,150.0,17.86484954]
[1750171237477,11.19818288,150.04,150.0,6.66666666]
[1750171237778,11.19818288,150.05,150.0,17.86484954]
[1750171238359,11.19818288,150.05,150.0,34.5315162]
[1750171238556,11.19818288,150.06,150.01,11.19818288]
[1750171238761,11.19818288,150.06,150.02,11.19818288]
[1750171239164,11.19818288,150.06,150.01,11.19818288]
[1750171239582,11.19818288,150.05,150.01,11.19818288]
[1750171239875,11.19818288,150.05,150.0,23.33333332]
[1750171240075,11.19818288,150.05,150.0,34.5315162]
[1750171240463,0.28432314,150.07,150.01,11.19818288]
[1750171240663,11.19818288,150.05,150.01,11.19818288]
[1750171241083,11.19818288,150.05,150.0,23.33333332]
[1750171241386,11.19818288,150.05,150.01,11.19818288]
[1750171242494,11.19818288,150.05,150.02,6.66577789]
[1750171243690,11.19818288,150.06,150.02,34.52840551]
[1750171244293,11.19818288,150.07,150.03,11.19818288]
[1750171244594,11.19818288,150.08,150.05,6.66444518]
[1750171244901,18.933972,150.1,150.05,6.66444518]
[1750171245082,11.19818288,150.08,150.05,6.66444518]
[1750171245701,11.19818288,150.07,150.05,6.66444518]
[1750171245880,11.19818288,150.06,150.03,6.66533359]
[1750171246076,11.19818288,150.05,150.03,6.66533359]
[1750171246785,11.19818288,150.04,150.01,6.66622225]
[1750171247700,11.19818288,150.05,150.01,6.66622225]
[1750171248379,11.19818288,150.06,150.01,34.52996075]
[1750171248886,7.4687883,150.03,150.02,26.0]
[1750171249880,7.4687883,150.03,150.01,32.66580665]
[1750171252978,7.4687883,150.02,150.01,32.66580665]
[1750171253176,18.933972,150.05,150.0,32.66648057]
[1750171253377,7.4687883,150.04,150.0,56.80193553]
[1750171253576,7.4687883,150.05,150.01,7.4687883]
[1750171253775,7.4687883,150.04,150.0,56.80193553]
[1750171254504,7.6129,150.06,150.02,26.0]
[1750171254505,7.4687883,150.03,150.02,26.0]
[1750171254878,7.4687883,150.04,150.02,26.0]
[1750171255178,7.4687883,150.03,150.02,26.0]
[1750171255581,7.4687883,150.03,150.0,6.66648057]
[1750171255795,18.933972,150.05,150.0,32.66648057]
[1750171256008,7.4687883,150.02,150.0,32.66648057]
[1750171256180,18.933972,150.05,150.0,32.66648057]
[1750171256385,7.4687883,150.01,150.0,32.66648057]
[1750171256977,7.4687883,150.01,150.0,26.0]
[1750171258008,7.4687883,150.01,149.95,6.66888962]
[1750171258179,18.933972,150.0,149.98,26.0]
[1750171258378,7.75311144,149.99,149.98,26.0]
[1750171258608,7.4687883,149.99,149.98,6.66755567]
[1750171258786,27.96,150.02,149.98,6.66755567]
[1750171260006,7.4687883,150.01,149.98,6.66755567]
[1750171260207,7.4687883,150.01,149.96,23.33945049]
[1750171260380,27.96,150.02,149.96,23.33945049]
[1750171260381,7.4687883,150.0,149.96,23.33945049]
[1750171260991,7.4687883,149.99,149.96,6.66844491]
[1750171261281,7.4687883,149.97,149.96,6.66844491]
[1750171261476,6.4861883,149.97,149.96,6.66844491]
[1750171261897,6.4861883,149.97,149.95,32.66872948]
[1750171262091,7.4687883,149.96,149.95,32.66872948]
[1750171262296,7.4687883,149.96,149.93,16.67441683]
[1750171262297,7.4687883,149.96,149.93,32.66977923]
[1750171262495,7.4687883,149.95,149.93,32.66977923]
[1750171262888,6.66715969,149.99,149.91,6.67066906]
[1750171262889,7.4687883,149.94,149.91,6.67066906]
[1750171263088,7.4687883,149.92,149.91,6.67066906]
[1750171263315,7.4687883,149.92,149.89,6.67155914]
[1750171263518,7.4687883,149.91,149.89,6.67155914]
[1750171263720,0.28432314,149.96,149.89,23.35045699]
[1750171263721,7.4687883,149.92,149.89,23.35045699]
[1750171264415,7.4687883,149.91,149.89,6.67155914]
[1750171265414,0.42648471,149.94,149.89,6.67155914]
[1750171265619,7.4687883,149.91,149.89,6.67155914]
[1750171266417,7.75311144,149.9,149.87,1.3997008]
[1750171266589,7.4687883,149.88,149.87,1.3997008]
[1750171266793,11.51402071,149.88,149.87,1.3997008]
[1750171267814,46.79152358,149.88,149.87,1.3997008]
[1750171268024,67.97603913,149.88,149.87,1.3997008]
[1750171268387,53.58835633,149.88,149.8,6.67541329]
[1750171268632,18.933972,149.84,149.77,6.67690458]
[1750171268794,11.22969757,149.81,149.77,34.59886361]
[1750171268991,11.22969757,149.82,149.78,11.22969757]
[1750171269394,11.22969757,149.82,149.77,23.36916604]
[1750171269395,11.22969757,149.82,149.77,34.59886361]
[1750171270217,11.22969757,149.78,149.7,11.22969757]
[1750171270536,11.22969757,149.74,149.7,26.0]
[1750171270737,10.9570696,149.77,149.71,11.22969757]
[1750171271045,10.9570696,149.77,149.73,11.22969757]
[1750171271226,22.18676717,149.77,149.71,16.69804799]
[1750171271413,22.18676717,149.77,149.73,11.22969757]
[1750171272238,11.22969757,149.76,149.72,11.22969757]
[1750171272421,21.18326255,149.76,149.72,11.22969757]
[1750171272629,9.95356498,149.76,149.72,11.22969757]
[1750171273037,9.95356498,149.76,149.71,23.37762851]
[1750171273336,11.22969757,149.73,149.71,6.67958052]
[1750171273568,9.95356498,149.76,149.64,6.68270515]
[1750171273569,11.22969757,149.72,149.64,6.68270515]
[1750171273716,26.0,149.69,149.64,6.68270515]
[1750171273913,26.28432314,149.71,149.64,6.68270515]
[1750171274116,11.22969757,149.65,149.61,6.18404518]
[1750171274331,37.22969757,149.67,149.57,1.3997008]
[1750171274545,0.28432314,149.66,149.59,6.6845421]
[1750171274712,11.22969757,149.64,149.6,22.93167418]
[1750171274916,11.22969757,149.64,149.6,11.70197661]
[1750171275123,18.933972,149.66,149.6,11.70197661]
[1750171275761,11.22969757,149.62,149.6,11.70197661]
[1750171275921,18.933972,149.66,149.6,11.70197661]
[1750171276123,0.28432314,149.65,149.6,37.70197661]
[1750171276335,0.42648471,149.67,149.64,11.22969757]
[1750171276539,0.28432314,149.67,149.63,26.0]
[1750171276735,18.64964886,149.71,149.66,11.22969757]
[1750171276957,18.64964886,149.71,149.6,28.41320655]
[1750171277139,26.0,149.72,149.6,28.41320655]
[1750171277353,37.22969757,149.7,149.65,11.22969757]
[1750171277552,21.92280558,149.73,149.63,26.0]
[1750171277770,0.28432314,149.7,149.66,6.6818121]
[1750171278067,26.0,149.72,149.66,6.6818121]
[1750171278269,18.64964886,149.72,149.66,6.6818121]
[1750171278567,44.64964886,149.73,149.67,11.22969757]
[1750171278790,0.28432314,149.72,149.68,11.22969757]
[1750171278950,11.55876498,149.76,149.7,11.22969757]
[1750171279145,36.15934643,149.75,149.71,11.22969757]
[1750171279354,9.95356498,149.76,149.74,11.22969757]
[1750171279740,9.95356498,149.76,149.74,17.90775542]
[1750171280874,9.95356498,149.76,149.75,11.22969757]
[1750171281970,9.95356498,149.76,149.74,6.67813031]
[1750171282274,9.95356498,149.76,149.73,11.22969757]
[1750171282865,9.95356498,149.76,149.71,23.37853182]
[1750171283054,9.95356498,149.76,149.75,11.22969757]
[1750171283753,9.95356498,149.76,149.75,17.90749389]
[1750171283989,9.95356498,149.76,149.72,6.67913438]
[1750171284281,9.95356498,149.76,149.75,11.22969757]
[1750171285196,9.95356498,149.76,149.73,26.0]
[1750171285356,9.95356498,149.76,149.75,22.45939514]
[1750171285753,4.91011464,149.77,149.75,22.45939514]
[1750171285967,4.91011464,149.77,149.76,55.13674556]
[1750171286286,6.0298,149.88,149.79,26.0]
[1750171286457,11.22969757,149.9,149.85,11.22969757]
[1750171286653,20.70247537,149.89,149.85,11.22969757]
[1750171286982,11.22969757,149.88,149.84,11.22969757]
[1750171287564,0.28432314,149.88,149.84,11.22969757]
[1750171287892,9.4727778,149.89,149.87,11.22969757]
[1750171288452,9.4727778,149.89,149.86,6.6728947]
[1750171288647,9.4727778,149.89,149.86,17.90259227]
[1750171288881,9.4727778,149.89,149.86,6.6728947]
[1750171289058,9.4727778,149.89,149.86,17.90259227]
[1750171290583,9.4727778,149.89,149.87,11.22969757]
[1750171290888,9.4727778,149.89,149.86,17.90259227]
[1750171291459,9.4727778,149.89,149.88,11.22969757]
[1750171291859,29.87934643,149.94,149.89,6.67155914]
[1750171292079,0.28432314,149.93,149.9,11.22969757]
[1750171292510,6.5084,149.96,149.92,11.22969757]
[1750171292770,18.64964886,149.95,149.91,11.22969757]
[1750171293372,0.28432314,149.94,149.91,11.22969757]
[1750171293671,6.5084,149.96,149.92,11.22969757]
[1750171294002,0.28432314,149.95,149.92,17.89969085]
[1750171294294,11.22969757,149.94,149.86,16.68167173]
[1750171294593,11.22969757,149.94,149.89,11.22969757]
[1750171294994,11.22969757,149.92,149.86,23.35456643]
[1750171295200,0.28432314,149.93,149.89,11.22969757]
[1750171295374,11.51402071,149.93,149.89,11.22969757]
[1750171295788,0.28432314,149.93,149.9,11.22969757]
[1750171295999,0.28432314,149.93,149.86,23.35456643]
[1750171296000,0.28432314,149.93,149.89,11.22969757]
[1750171296975,11.51402071,149.93,149.89,11.22969757]
[1750171297175,11.51402071,149.93,149.89,17.90109453]
[1750171297774,11.51402071,149.93,149.89,6.67139696]
[1750171298201,11.22969757,149.92,149.88,6.67192945]
[1750171298406,0.28432314,149.93,149.9,11.22969757]
[1750171298615,17.73809757,149.96,149.92,11.22969757]
[1750171298775,17.72969757,149.97,149.93,11.22969757]
[1750171299105,11.22969757,149.94,149.91,6.67064262]
[1750171299773,11.22969757,149.94,149.9,17.90068653]
[1750171300220,11.22969757,149.94,149.9,6.67098896]
[1750171300539,11.22969757,149.94,149.9,17.90068653]
[1750171300938,0.28432314,149.95,149.91,11.22969757]
[1750171301139,11.51402071,149.95,149.91,11.22969757]
[1750171301338,11.51402071,149.95,149.9,17.90068653]
[1750171301719,11.22969757,149.94,149.9,17.90068653]
[1750171301919,0.28432314,149.95,149.91,11.22969757]
[1750171302238,11.51402071,149.95,149.91,11.22969757]
[1750171302433,11.51402071,149.95,149.9,17.90068653]
[1750171302737,0.28432314,149.96,149.93,6.66977923]
[1750171302941,11.51402071,149.96,149.93,6.66977923]
[1750171303241,11.22969757,149.95,149.92,6.67013361]
[1750171303544,11.37185914,149.96,149.92,6.67013361]
[1750171303842,0.28432314,149.96,149.92,17.89983118]
[1750171304212,0.28432314,149.96,149.93,11.22969757]
[1750171304409,11.51402071,149.96,149.92,17.89983118]
[1750171306041,11.51402071,149.93,149.88,17.90170184]
[1750171306244,11.51402071,149.93,149.88,6.67200427]
[1750171306245,11.22969757,149.92,149.88,6.67200427]
[1750171306434,11.22969757,149.89,149.84,17.90348294]
[1750171306615,0.28432314,149.9,149.84,17.90348294]
[1750171306821,11.22969757,149.89,149.86,6.6728947]
[1750171307038,11.22969757,149.89,149.85,6.67325908]
[1750171307248,11.22969757,149.87,149.83,6.67423079]
[1750171307457,11.51402071,149.85,149.79,16.68901748]
[1750171307658,11.22969757,149.84,149.79,27.91871505]
[1750171307839,11.22969757,149.84,149.8,11.22969757]
[1750171308538,11.22969757,149.84,149.8,17.90526499]
[1750171308941,18.933972,149.85,149.8,17.90526499]
[1750171309243,11.22969757,149.84,149.8,17.90526499]
[1750171310347,11.22969757,149.84,149.79,11.22969757]
[1750171310560,11.22969757,149.83,149.79,11.22969757]
[1750171311338,11.22969757,149.82,149.78,6.6764588]
[1750171311572,11.22969757,149.82,149.78,17.90615637]
[1750171311745,11.22969757,149.82,149.78,6.6764588]
[1750171311943,11.22969757,149.83,149.78,17.90615637]
[1750171312671,25.60749067,149.85,149.78,17.90615637]
[1750171312958,11.22969757,149.82,149.78,17.90615637]
[1750171313160,11.22969757,149.82,149.78,6.6764588]
[1750171313765,11.22969757,149.81,149.76,6.67735042]
[1750171313945,11.22969757,149.8,149.76,17.90704799]
[1750171314148,0.28432314,149.82,149.76,17.90704799]
[1750171315067,11.22969757,149.79,149.76,6.67735042]
[1750171315273,11.22969757,149.79,149.73,26.0]
[1750171315274,11.22969757,149.79,149.74,17.90793985]
[1750171315471,0.28432314,149.78,149.7,7.6737]
[1750171315652,11.22969757,149.74,149.71,6.67958052]
[1750171315843,11.22969757,149.76,149.72,11.22969757]
[1750171316044,0.28432314,149.78,149.74,11.22969757]
[1750171316239,11.22969757,149.75,149.71,17.90927809]
[1750171316955,11.22969757,149.75,149.71,6.67958052]
[1750171317962,11.22969757,149.75,149.7,11.22969757]
[1750171318170,11.22969757,149.74,149.7,11.22969757]
[1750171318469,26.28432314,149.77,149.69,6.68047297]
[1750171318470,11.22969757,149.73,149.69,6.68047297]
[1750171318637,11.22969757,149.74,149.7,11.22969757]
[1750171318838,0.28432314,149.74,149.7,11.22969757]
[1750171319087,0.28432314,149.74,149.69,6.68047297]
[1750171319245,11.51402071,149.74,149.69,17.91017054]
[1750171319552,11.51402071,149.74,149.7,11.22969757]
[1750171319746,0.28432314,149.74,149.7,11.22969757]
[1750171320072,11.51402071,149.74,149.71,6.67958052]
[1750171320449,11.51402071,149.74,149.7,6.6798953]
[1750171321044,0.28432314,149.74,149.7,17.90959287]
[1750171321549,11.51402071,149.74,149.7,6.6798953]
[1750171321750,11.22969757,149.73,149.7,6.6798953]
[1750171322266,11.51402071,149.74,149.7,6.6798953]
[1750171322678,11.51402071,149.74,149.7,17.90959287]
[1750171323256,11.51402071,149.74,149.7,6.6798953]
[1750171324079,0.28432314,149.74,149.7,6.6798953]
[1750171324254,11.51402071,149.74,149.7,6.6798953]
[1750171324676,11.22969757,149.73,149.7,6.6798953]
[1750171325580,0.28432314,149.74,149.7,17.90959287]
[1750171325892,26.0,149.76,149.72,11.22969757]
[1750171326056,26.68769313,149.82,149.75,11.22969757]
[1750171326057,18.64964886,149.8,149.75,11.22969757]
[1750171326359,11.22969757,149.82,149.78,11.22969757]
[1750171326558,11.51402071,149.81,149.77,11.22969757]
[1750171327273,11.22969757,149.8,149.76,11.22969757]
[1750171327483,11.22969757,149.79,149.75,6.67779632]
[1750171328498,11.22969757,149.79,149.75,17.90749389]
[1750171328663,11.22969757,149.79,149.75,6.67779632]
[1750171330302,11.22969757,149.79,149.75,17.90749389]
[1750171332615,11.22969757,149.79,149.74,6.67814483]
[1750171332817,11.22969757,149.75,149.67,6.68136567]
[1750171333056,11.22969757,149.72,149.67,43.91106324]
[1750171333363,11.22969757,149.72,149.65,6.6822586]
[1750171333364,11.22969757,149.68,149.65,6.6822586]
[1750171333654,11.22969757,149.67,149.63,6.68297648]
[1750171333881,11.22969757,149.64,149.6,11.70198554]
[1750171334034,11.22969757,149.63,149.6,11.70198554]
[1750171334387,11.22969757,149.63,149.6,5.0175174]
[1750171334656,11.22969757,149.64,149.6,11.701945]
[1750171334870,0.28432314,149.64,149.6,11.70192279]
[1750171335035,11.22969757,149.63,149.6,11.70192279]
[1750171335636,0.28432314,149.64,149.6,11.70192279]
[1750171335955,11.22969757,149.68,149.63,11.22969757]
[1750171336137,6.67925274,149.72,149.65,11.22969757]
[1750171336138,11.22969757,149.7,149.65,11.22969757]
[1750171336337,17.96969757,149.72,149.67,11.22969757]
[1750171336556,17.96969757,149.72,149.64,23.38946804]
[1750171336557,17.96969757,149.72,149.68,11.22969757]
[1750171336861,11.22969757,149.7,149.66,11.22969757]
[1750171337160,11.22969757,149.71,149.66,11.22969757]
[1750171337356,11.22969757,149.71,149.67,11.22969757]
[1750171337543,0.28432314,149.71,149.67,11.22969757]
[1750171337865,0.14216157,149.71,149.67,11.22969757]
[1750171338158,11.37185914,149.71,149.68,6.68091929]
[1750171338340,11.37185914,149.71,149.67,6.6812046]
[1750171338543,11.37185914,149.71,149.64,16.70676289]
[1750171338544,11.37185914,149.69,149.64,11.22969757]
[1750171338739,11.37185914,149.69,149.63,23.3910312]
[1750171339064,11.37185914,149.69,149.64,11.22969757]
[1750171339065,11.22969757,149.68,149.64,11.22969757]
[1750171339242,11.22969757,149.68,149.63,17.91284934]
[1750171339437,11.22969757,149.68,149.63,6.68315177]
[1750171339635,0.14216157,149.69,149.63,6.68315177]
[1750171339636,11.22969757,149.67,149.63,17.91284934]
[1750171339837,11.22969757,149.68,149.63,17.91284934]
[1750171340037,0.14216157,149.69,149.63,17.91284934]
[1750171340038,11.22969757,149.67,149.63,17.91284934]
[1750171340256,11.22969757,149.67,149.63,6.68315177]
[1750171340539,0.28432314,149.68,149.65,11.22969757]
[1750171340745,11.37185914,149.68,149.64,11.22969757]
[1750171341264,11.22969757,149.68,149.63,34.62072877]
[1750171341449,11.22969757,149.67,149.63,17.91284934]
[1750171341648,11.22969757,149.67,149.63,6.68315177]
[1750171342066,11.22969757,149.66,149.61,6.68404518]
[1750171342264,11.22969757,149.65,149.61,6.68404518]
[1750171342459,11.22969757,149.65,149.61,17.91374275]
[1750171342766,0.14216157,149.67,149.61,17.91374275]
[1750171342972,11.51402071,149.67,149.62,11.22969757]
[1750171343168,11.22969757,149.66,149.62,11.22969757]
[1750171343369,0.28432314,149.67,149.62,11.22969757]
[1750171343570,0.28432314,149.67,149.63,11.22969757]
[1750171343770,18.79181043,149.7,149.63,11.22969757]
[1750171343972,8.0074,149.75,149.67,11.22969757]
[1750171343973,6.74,149.72,149.67,11.22969757]
[1750171344290,11.22969757,149.7,149.67,6.68094818]
[1750171346962,11.51402071,149.71,149.67,6.68094818]
[1750171347165,11.51402071,149.71,149.64,49.38914729]
[1750171347358,11.51402071,149.71,149.66,11.22969757]
[1750171347679,11.22969757,149.7,149.66,11.22969757]
[1750171347848,0.28432314,149.71,149.67,11.22969757]
[1750171348270,11.51402071,149.71,149.66,11.22969757]
[1750171348665,0.28432314,149.71,149.66,11.22969757]
[1750171348871,6.74,149.72,149.69,11.22969757]
[1750171349065,11.22969757,149.73,149.69,11.22969757]
[1750171349370,11.22969757,149.71,149.67,11.22969757]
[1750171349760,11.51402071,149.72,149.68,11.22969757]
[1750171349960,0.28432314,149.72,149.68,11.22969757]
[1750171350164,11.51402071,149.72,149.68,11.22969757]
[1750171350362,11.51402071,149.72,149.67,17.91106324]